[Event "Early-Titled-Tuesday-Blitz-April-16-2024"]
[Site "Chess.com"]
[Date "2024.04.16"]
[Round "10"]
[White "RedFirePanda"]
[Black "AlainBruxelles"]
[Result "1-0"]
[WhiteElo "2480"]
[BlackElo "2349"]
[TimeControl "180+1"]
[EndTime "9:59:56 PDT"]
[Termination "RedFirePanda won by resignation"]

1. d4 {[%clk 0:03:00.9]} 1... Nf6 {[%clk 0:02:54.8]} 2. Bf4 {[%clk 0:02:56.5]}
2... d5 {[%clk 0:02:54.2]} 3. e3 {[%clk 0:02:54.9]} 3... e6 {[%clk 0:02:54.5]}
4. Nd2 {[%clk 0:02:53.2]} 4... Bd6 {[%clk 0:02:55]} 5. Bg3 {[%clk 0:02:52.7]}
5... c5 {[%clk 0:02:53.8]} 6. c3 {[%clk 0:02:52]} 6... Nc6 {[%clk 0:02:51.3]} 7.
Ngf3 {[%clk 0:02:51.1]} 7... Bxg3 {[%clk 0:02:50.3]} 8. hxg3 {[%clk 0:02:51.1]}
8... Qb6 {[%clk 0:02:49.3]} 9. Qb3 {[%clk 0:02:47.3]} 9... Qxb3 {[%clk
0:02:47.5]} 10. Nxb3 {[%clk 0:02:42.9]} 10... cxd4 {[%clk 0:02:47.2]} 11. exd4
{[%clk 0:02:41.1]} 11... O-O {[%clk 0:02:43.3]} 12. Bd3 {[%clk 0:02:40.6]} 12...
Ne4 {[%clk 0:02:43.1]} 13. Bxe4 {[%clk 0:02:11.9]} 13... dxe4 {[%clk 0:02:42]}
14. Ng5 {[%clk 0:02:12.4]} 14... e5 {[%clk 0:02:22.8]} 15. d5 {[%clk 0:01:53.8]}
15... Ne7 {[%clk 0:02:13.1]} 16. O-O-O {[%clk 0:01:53.7]} 16... Bf5 {[%clk
0:02:08]} 17. Nc5 {[%clk 0:01:45.4]} 17... Rfd8 {[%clk 0:01:58.1]} 18. Nxb7
{[%clk 0:01:34.8]} 18... Rxd5 {[%clk 0:01:54.4]} 19. Rxd5 {[%clk 0:01:15.7]}
19... Nxd5 {[%clk 0:01:53.1]} 20. Nd6 {[%clk 0:01:14.2]} 20... Bg6 {[%clk
0:01:43.6]} 21. Ngxe4 {[%clk 0:01:06.6]} 21... Rd8 {[%clk 0:01:40.7]} 22. Rd1
{[%clk 0:01:04.7]} 22... Nb6 {[%clk 0:01:28.8]} 23. b3 {[%clk 0:00:57.6]} 23...
f5 {[%clk 0:01:15]} 24. Nc5 {[%clk 0:00:50.9]} 24... Bh5 {[%clk 0:01:04.2]} 25.
Rd2 {[%clk 0:00:47.3]} 25... e4 {[%clk 0:01:00.7]} 26. c4 {[%clk 0:00:45.3]}
26... Bg6 {[%clk 0:00:49.3]} 27. Ne6 {[%clk 0:00:43.8]} 27... Rd7 {[%clk
0:00:44]} 28. c5 {[%clk 0:00:42.9]} 28... Na8 {[%clk 0:00:38.7]} 29. b4 {[%clk
0:00:11.2]} 29... a6 {[%clk 0:00:32.4]} 30. a4 {[%clk 0:00:10.4]} 30... Nc7
{[%clk 0:00:29.2]} 31. c6 {[%clk 0:00:06.8]} 31... Re7 {[%clk 0:00:23.3]} 32.
Nxc7 {[%clk 0:00:07.2]} 32... Rxc7 {[%clk 0:00:22.5]} 33. b5 {[%clk 0:00:08.1]}
33... Kf8 {[%clk 0:00:19]} 34. Kb2 {[%clk 0:00:06]} 34... Ke7 {[%clk 0:00:18.7]}
35. Nc4 {[%clk 0:00:04.9]} 35... Bf7 {[%clk 0:00:16.1]} 36. Ne5 {[%clk
0:00:03.6]} 36... Be6 {[%clk 0:00:14.8]} 37. b6 {[%clk 0:00:03.8]} 37... Rc8
{[%clk 0:00:14.4]} 38. c7 {[%clk 0:00:03.3]} 38... Kf6 {[%clk 0:00:08.6]} 39. b7
{[%clk 0:00:02.9]} 39... Rxc7 {[%clk 0:00:09]} 40. b8=Q {[%clk 0:00:03.2]} 40...
Rc5 {[%clk 0:00:05.8]} 41. Nd7+ {[%clk 0:00:03.2]} 41... Bxd7 {[%clk 0:00:05.1]}
42. Rxd7 {[%clk 0:00:04.1]} 1-0

[Event "Early-Titled-Tuesday-Blitz-April-16-2024"]
[Site "Chess.com"]
[Date "2024.04.16"]
[Round "10"]
[White "artin10862"]
[Black "tsaruk_maks"]
[Result "1-0"]
[WhiteElo "2931"]
[BlackElo "2725"]
[TimeControl "180+1"]
[EndTime "9:59:57 PDT"]
[Termination "artin10862 won by resignation"]

1. c4 {[%clk 0:02:58]} 1... e5 {[%clk 0:02:58.1]} 2. Nc3 {[%clk 0:02:55]} 2...
Nf6 {[%clk 0:02:58.6]} 3. Nf3 {[%clk 0:02:53.2]} 3... Nc6 {[%clk 0:02:58.2]} 4.
e3 {[%clk 0:02:53.3]} 4... Bb4 {[%clk 0:02:57.9]} 5. Qc2 {[%clk 0:02:50]} 5...
Bxc3 {[%clk 0:02:54.1]} 6. Qxc3 {[%clk 0:02:50]} 6... Qe7 {[%clk 0:02:53.4]} 7.
a3 {[%clk 0:02:43.9]} 7... a5 {[%clk 0:02:53.6]} 8. d3 {[%clk 0:02:32.7]} 8...
O-O {[%clk 0:02:52.9]} 9. b3 {[%clk 0:02:31.3]} 9... d5 {[%clk 0:02:48.8]} 10.
cxd5 {[%clk 0:02:31]} 10... Nxd5 {[%clk 0:02:49.7]} 11. Qc2 {[%clk 0:02:31.6]}
11... Bg4 {[%clk 0:02:12.8]} 12. Be2 {[%clk 0:02:26.9]} 12... Rad8 {[%clk
0:02:10]} 13. O-O {[%clk 0:01:41.8]} 13... Kh8 {[%clk 0:02:05.1]} 14. Bb2 {[%clk
0:01:39.1]} 14... Rd7 {[%clk 0:02:02.5]} 15. h3 {[%clk 0:01:32.6]} 15... Bxf3
{[%clk 0:01:36.2]} 16. Bxf3 {[%clk 0:01:33.5]} 16... Rfd8 {[%clk 0:01:36.4]} 17.
Rac1 {[%clk 0:01:27]} 17... Qe6 {[%clk 0:01:31.4]} 18. Rfd1 {[%clk 0:01:12.8]}
18... f5 {[%clk 0:01:27.9]} 19. Qc4 {[%clk 0:01:12.2]} 19... Nce7 {[%clk
0:01:27.7]} 20. e4 {[%clk 0:00:47.8]} 20... fxe4 {[%clk 0:01:22.1]} 21. dxe4
{[%clk 0:00:47.3]} 21... Nf4 {[%clk 0:01:17.4]} 22. Qxe6 {[%clk 0:00:45.8]}
22... Nxe6 {[%clk 0:01:18.1]} 23. Bxe5 {[%clk 0:00:45.5]} 23... Rxd1+ {[%clk
0:01:16.8]} 24. Rxd1 {[%clk 0:00:45.1]} 24... Rxd1+ {[%clk 0:01:17.7]} 25. Bxd1
{[%clk 0:00:45.8]} 25... Nc6 {[%clk 0:01:18.5]} 26. Bc3 {[%clk 0:00:45.2]} 26...
Kg8 {[%clk 0:01:13.2]} 27. g3 {[%clk 0:00:39.9]} 27... Kf7 {[%clk 0:01:10.4]}
28. f4 {[%clk 0:00:38.6]} 28... g6 {[%clk 0:01:09.2]} 29. Kf2 {[%clk 0:00:38.9]}
29... b5 {[%clk 0:01:01.4]} 30. Ke3 {[%clk 0:00:35.4]} 30... b4 {[%clk
0:00:55.5]} 31. axb4 {[%clk 0:00:34.4]} 31... axb4 {[%clk 0:00:56.4]} 32. Bb2
{[%clk 0:00:34.4]} 32... Na5 {[%clk 0:00:52.7]} 33. Be5 {[%clk 0:00:20.5]} 33...
c5 {[%clk 0:00:52.8]} 34. Kd3 {[%clk 0:00:19.2]} 34... c4+ {[%clk 0:00:49.1]}
35. bxc4 {[%clk 0:00:18.2]} 35... Nc5+ {[%clk 0:00:49.5]} 36. Kd4 {[%clk
0:00:18.6]} 36... Ne6+ {[%clk 0:00:50.1]} 37. Kd5 {[%clk 0:00:18.6]} 37... b3
{[%clk 0:00:42.9]} 38. c5 {[%clk 0:00:18.7]} 38... h5 {[%clk 0:00:35.7]} 39. c6
{[%clk 0:00:17.1]} 39... Nf8 {[%clk 0:00:15.6]} 40. c7 {[%clk 0:00:11.6]} 40...
Nd7 {[%clk 0:00:16.1]} 41. Bd4 {[%clk 0:00:11.7]} 41... b2 {[%clk 0:00:16.3]}
42. Bc2 {[%clk 0:00:11.3]} 42... Nb3 {[%clk 0:00:09.9]} 43. c8=Q {[%clk
0:00:09.1]} 1-0

[Event "Early-Titled-Tuesday-Blitz-April-16-2024"]
[Site "Chess.com"]
[Date "2024.04.16"]
[Round "10"]
[White "DominguezOnYoutube"]
[Black "Aygehovit1992"]
[Result "0-1"]
[WhiteElo "2930"]
[BlackElo "2772"]
[TimeControl "180+1"]
[EndTime "9:59:59 PDT"]
[Termination "Aygehovit1992 won by checkmate"]

1. e4 {[%clk 0:03:00.9]} 1... c5 {[%clk 0:03:00.2]} 2. Nf3 {[%clk 0:03:00.8]}
2... e6 {[%clk 0:03:00.6]} 3. d4 {[%clk 0:03:01.1]} 3... cxd4 {[%clk 0:03:01.5]}
4. Nxd4 {[%clk 0:03:01.6]} 4... Nc6 {[%clk 0:03:02.2]} 5. Nc3 {[%clk 0:03:01.5]}
5... Qc7 {[%clk 0:03:02.8]} 6. Be2 {[%clk 0:03:01.1]} 6... a6 {[%clk 0:03:02]}
7. Nxc6 {[%clk 0:02:58.4]} 7... bxc6 {[%clk 0:02:55.3]} 8. Qd3 {[%clk
0:02:48.1]} 8... Nf6 {[%clk 0:02:55]} 9. Qg3 {[%clk 0:02:45.3]} 9... e5 {[%clk
0:02:54.9]} 10. f4 {[%clk 0:02:42.8]} 10... d6 {[%clk 0:02:55]} 11. O-O {[%clk
0:02:35.2]} 11... h5 {[%clk 0:02:38.5]} 12. fxe5 {[%clk 0:02:17.7]} 12... dxe5
{[%clk 0:02:38.6]} 13. Bg5 {[%clk 0:02:16.3]} 13... Bc5+ {[%clk 0:02:36]} 14.
Kh1 {[%clk 0:02:15.8]} 14... Ng4 {[%clk 0:02:34.4]} 15. h3 {[%clk 0:01:19.3]}
15... Be6 {[%clk 0:02:30.7]} 16. Rad1 {[%clk 0:01:16]} 16... f6 {[%clk
0:02:25.6]} 17. Bc1 {[%clk 0:01:14.5]} 17... Kf7 {[%clk 0:02:08.4]} 18. Na4
{[%clk 0:00:55.7]} 18... Ba7 {[%clk 0:02:08.4]} 19. b3 {[%clk 0:00:50.5]} 19...
Qa5 {[%clk 0:01:40.7]} 20. Nb2 {[%clk 0:00:45.9]} 20... Qxa2 {[%clk 0:01:14.4]}
21. Bc4 {[%clk 0:00:41.3]} 21... Bxc4 {[%clk 0:01:09.5]} 22. Nxc4 {[%clk
0:00:40.6]} 22... Qxc2 {[%clk 0:01:07.1]} 23. Rd2 {[%clk 0:00:34.5]} 23... Qb1
{[%clk 0:00:57.7]} 24. Rd7+ {[%clk 0:00:34.1]} 24... Ke6 {[%clk 0:00:43.6]} 25.
Rfd1 {[%clk 0:00:24.4]} 25... Qxe4 {[%clk 0:00:39.2]} 26. R1d6+ {[%clk 0:00:16]}
26... Kf5 {[%clk 0:00:39.5]} 27. Rxg7 {[%clk 0:00:14.7]} 27... Nf2+ {[%clk
0:00:39.8]} 28. Kh2 {[%clk 0:00:14.8]} 28... Ng4+ {[%clk 0:00:40]} 29. Kh1
{[%clk 0:00:09.4]} 29... Qe2 {[%clk 0:00:25.5]} 30. Qf3+ {[%clk 0:00:03.6]}
30... Qxf3 {[%clk 0:00:24.4]} 31. gxf3 {[%clk 0:00:04.5]} 31... Nf2+ {[%clk
0:00:21.4]} 32. Kg2 {[%clk 0:00:04.6]} 32... Rhg8 {[%clk 0:00:21.7]} 33. Rd7
{[%clk 0:00:02.5]} 33... Rxg7+ {[%clk 0:00:20.6]} 34. Rxg7 {[%clk 0:00:03.4]}
34... Nd3 {[%clk 0:00:21]} 35. Bd2 {[%clk 0:00:03.7]} 35... Nf4+ {[%clk
0:00:15.4]} 36. Kh2 {[%clk 0:00:04.1]} 36... Bd4 {[%clk 0:00:11.6]} 37. Rc7
{[%clk 0:00:03.4]} 37... Rg8 {[%clk 0:00:08]} 38. Rxc6 {[%clk 0:00:03]} 38...
Rg2+ {[%clk 0:00:07.3]} 39. Kh1 {[%clk 0:00:03.6]} 39... Rg1+ {[%clk 0:00:07.5]}
40. Kh2 {[%clk 0:00:04.1]} 40... Rg2+ {[%clk 0:00:07.3]} 41. Kh1 {[%clk
0:00:04.2]} 41... Rg3 {[%clk 0:00:07.3]} 42. Nd6+ {[%clk 0:00:02.2]} 42... Kg6
{[%clk 0:00:07.7]} 43. Ne4 {[%clk 0:00:02.2]} 43... Rxh3# {[%clk 0:00:07.8]} 0-1

[Event "Early-Titled-Tuesday-Blitz-April-16-2024"]
[Site "Chess.com"]
[Date "2024.04.16"]
[Round "10"]
[White "AlmasRakhmatullaev"]
[Black "GothamChess"]
[Result "1-0"]
[WhiteElo "2877"]
[BlackElo "2668"]
[TimeControl "180+1"]
[EndTime "10:00:00 PDT"]
[Termination "AlmasRakhmatullaev won by checkmate"]

1. e4 {[%clk 0:03:00.9]} 1... d5 {[%clk 0:02:59.8]} 2. exd5 {[%clk 0:03:00.9]}
2... Qxd5 {[%clk 0:03:00.7]} 3. Nc3 {[%clk 0:03:01.1]} 3... Qa5 {[%clk
0:03:01.1]} 4. d4 {[%clk 0:03:01.8]} 4... Nf6 {[%clk 0:03:01.7]} 5. Bd2 {[%clk
0:03:02.2]} 5... Bf5 {[%clk 0:03:00]} 6. Bc4 {[%clk 0:03:01.2]} 6... e6 {[%clk
0:02:59.5]} 7. Nf3 {[%clk 0:02:58.3]} 7... Bb4 {[%clk 0:02:57.4]} 8. O-O {[%clk
0:02:57.9]} 8... Nc6 {[%clk 0:02:51.4]} 9. a3 {[%clk 0:02:53.8]} 9... Bxc3
{[%clk 0:02:51.6]} 10. Bxc3 {[%clk 0:02:54.7]} 10... Qb6 {[%clk 0:02:49.8]} 11.
Re1 {[%clk 0:02:52.1]} 11... O-O {[%clk 0:02:48.5]} 12. Ne5 {[%clk 0:02:39.6]}
12... Rad8 {[%clk 0:02:41.6]} 13. Nxc6 {[%clk 0:02:33.5]} 13... Qxc6 {[%clk
0:02:42]} 14. Qe2 {[%clk 0:02:25.1]} 14... Ne4 {[%clk 0:02:26.8]} 15. Bb4 {[%clk
0:02:19.1]} 15... Nd6 {[%clk 0:02:21.5]} 16. Bb3 {[%clk 0:02:18.6]} 16... Rfe8
{[%clk 0:02:15.5]} 17. c4 {[%clk 0:02:16.9]} 17... Bg6 {[%clk 0:01:42.2]} 18.
Rad1 {[%clk 0:02:14.8]} 18... b6 {[%clk 0:01:40.6]} 19. f3 {[%clk 0:02:07.9]}
19... a5 {[%clk 0:01:39.1]} 20. Bc3 {[%clk 0:02:08]} 20... a4 {[%clk 0:01:38.3]}
21. Ba2 {[%clk 0:02:08.4]} 21... h6 {[%clk 0:01:34.7]} 22. Kh1 {[%clk
0:02:07.3]} 22... Kh7 {[%clk 0:01:34.1]} 23. Rc1 {[%clk 0:01:57.2]} 23... Nf5
{[%clk 0:01:30.7]} 24. Qf2 {[%clk 0:01:55]} 24... Qb7 {[%clk 0:01:24.3]} 25. Bb1
{[%clk 0:01:50.1]} 25... Ne7 {[%clk 0:01:20.5]} 26. Bxg6+ {[%clk 0:01:46.9]}
26... Nxg6 {[%clk 0:01:21.4]} 27. Re4 {[%clk 0:01:44.9]} 27... b5 {[%clk
0:01:18.6]} 28. cxb5 {[%clk 0:01:32]} 28... Qxb5 {[%clk 0:01:18.6]} 29. Bb4
{[%clk 0:01:31.5]} 29... Rd7 {[%clk 0:01:15.3]} 30. h4 {[%clk 0:01:30.6]} 30...
Ne7 {[%clk 0:01:00]} 31. Qc2 {[%clk 0:01:15.3]} 31... Kg8 {[%clk 0:00:55]} 32.
Re5 {[%clk 0:01:10.5]} 32... Qb7 {[%clk 0:00:49.7]} 33. Qxa4 {[%clk 0:01:08.5]}
33... Red8 {[%clk 0:00:37.6]} 34. Bxe7 {[%clk 0:01:02.8]} 34... Qxb2 {[%clk
0:00:34]} 35. Rc2 {[%clk 0:00:41]} 35... Qa1+ {[%clk 0:00:24.2]} 36. Kh2 {[%clk
0:00:40.2]} 36... Rxe7 {[%clk 0:00:17]} 37. Re4 {[%clk 0:00:40.4]} 37... Red7
{[%clk 0:00:16.4]} 38. Qa7 {[%clk 0:00:30]} 38... Rxd4 {[%clk 0:00:08.9]} 39.
Qxc7 {[%clk 0:00:28.2]} 39... Rd1 {[%clk 0:00:08]} 40. Qe5 {[%clk 0:00:20.5]}
40... Rh1+ {[%clk 0:00:07.4]} 41. Kg3 {[%clk 0:00:21.1]} 41... Qg1 {[%clk
0:00:03.6]} 42. Kg4 {[%clk 0:00:10.5]} 42... f5+ {[%clk 0:00:02.8]} 43. Kh5
{[%clk 0:00:10.9]} 43... fxe4 {[%clk 0:00:01.6]} 44. Kg6 {[%clk 0:00:09.5]}
44... Rh2 {[%clk 0:00:01.2]} 45. Qxg7# {[%clk 0:00:09.1]} 1-0

[Event "Early-Titled-Tuesday-Blitz-April-16-2024"]
[Site "Chess.com"]
[Date "2024.04.16"]
[Round "10"]
[White "GMCarbone"]
[Black "KVAIDAN"]
[Result "0-1"]
[WhiteElo "2570"]
[BlackElo "2377"]
[TimeControl "180+1"]
[EndTime "10:00:00 PDT"]
[Termination "KVAIDAN won by checkmate"]

1. d4 {[%clk 0:03:00.9]} 1... e6 {[%clk 0:02:58.3]} 2. c4 {[%clk 0:03:01.4]}
2... f5 {[%clk 0:02:58.4]} 3. g3 {[%clk 0:03:01]} 3... Nf6 {[%clk 0:02:57.9]} 4.
Bg2 {[%clk 0:03:01.6]} 4... Be7 {[%clk 0:02:58.3]} 5. Nf3 {[%clk 0:03:01.7]}
5... d6 {[%clk 0:02:58.7]} 6. O-O {[%clk 0:03:01.4]} 6... O-O {[%clk 0:02:59.3]}
7. Nc3 {[%clk 0:03:01.9]} 7... a5 {[%clk 0:02:59.9]} 8. Qc2 {[%clk 0:02:53]}
8... Nc6 {[%clk 0:02:59.6]} 9. b3 {[%clk 0:02:49.1]} 9... e5 {[%clk 0:02:57.9]}
10. dxe5 {[%clk 0:02:45.1]} 10... dxe5 {[%clk 0:02:58]} 11. Rd1 {[%clk
0:02:45.4]} 11... Qe8 {[%clk 0:02:58.1]} 12. Nb5 {[%clk 0:02:41.2]} 12... Bd8
{[%clk 0:02:54.2]} 13. Bb2 {[%clk 0:02:35.7]} 13... e4 {[%clk 0:02:37.7]} 14.
Nfd4 {[%clk 0:02:20.2]} 14... Nxd4 {[%clk 0:02:31.1]} 15. Bxd4 {[%clk
0:02:16.2]} 15... Ng4 {[%clk 0:02:25.7]} 16. Qb2 {[%clk 0:02:11.8]} 16... Qg6
{[%clk 0:02:25.3]} 17. f3 {[%clk 0:02:02.5]} 17... Nf6 {[%clk 0:02:19.2]} 18.
Be5 {[%clk 0:01:58.6]} 18... c6 {[%clk 0:02:15.6]} 19. Nd6 {[%clk 0:01:50.1]}
19... exf3 {[%clk 0:02:13.8]} 20. exf3 {[%clk 0:01:48.8]} 20... Bb6+ {[%clk
0:02:07.1]} 21. Kh1 {[%clk 0:01:46.6]} 21... Nh5 {[%clk 0:02:00.9]} 22. Nxc8
{[%clk 0:01:42]} 22... Raxc8 {[%clk 0:01:59.9]} 23. Rd7 {[%clk 0:01:41.7]} 23...
f4 {[%clk 0:01:52.8]} 24. Rd6 {[%clk 0:00:04.7]} 24... Nxg3+ {[%clk 0:01:48.4]}
25. hxg3 {[%clk 0:00:05.1]} 25... Qh5+ {[%clk 0:01:48.7]} 26. Bh3 {[%clk
0:00:05.1]} 26... Qxh3+ {[%clk 0:01:48.9]} 27. Qh2 {[%clk 0:00:04.7]} 27... Qxg3
{[%clk 0:01:44.6]} 28. Qxg3 {[%clk 0:00:04.4]} 28... fxg3 {[%clk 0:01:44.7]} 29.
Rd7 {[%clk 0:00:04.4]} 29... Rf7 {[%clk 0:01:32.6]} 30. Rad1 {[%clk 0:00:05]}
30... Bf2 {[%clk 0:01:25.9]} 31. Kg2 {[%clk 0:00:04.2]} 31... b5 {[%clk
0:01:10]} 32. Rd8+ {[%clk 0:00:04.3]} 32... Rf8 {[%clk 0:01:06.4]} 33. Rxc8
{[%clk 0:00:03.8]} 33... Rxc8 {[%clk 0:01:06.3]} 34. Rd7 {[%clk 0:00:04.7]}
34... Re8 {[%clk 0:00:58.6]} 35. Rxg7+ {[%clk 0:00:03.4]} 35... Kf8 {[%clk
0:00:59]} 36. Rg5 {[%clk 0:00:02.3]} 36... Kf7 {[%clk 0:00:52.3]} 37. f4 {[%clk
0:00:02.5]} 37... bxc4 {[%clk 0:00:51.9]} 38. bxc4 {[%clk 0:00:02.1]} 38... h6
{[%clk 0:00:46.8]} 39. Rg7+ {[%clk 0:00:02.1]} 39... Ke6 {[%clk 0:00:47.1]} 40.
Rc7 {[%clk 0:00:02.1]} 40... h5 {[%clk 0:00:44]} 41. Rxc6+ {[%clk 0:00:02.4]}
41... Kf5 {[%clk 0:00:44.5]} 42. Rf6+ {[%clk 0:00:01.9]} 42... Ke4 {[%clk
0:00:44.6]} 43. Rd6 {[%clk 0:00:02.1]} 43... h4 {[%clk 0:00:43.9]} 44. Rd4+
{[%clk 0:00:01.8]} 44... Kf5 {[%clk 0:00:43.8]} 45. Rd6 {[%clk 0:00:01.6]} 45...
h3+ {[%clk 0:00:43.2]} 46. Kxh3 {[%clk 0:00:01.7]} 46... Be1 {[%clk 0:00:41]}
47. Kg2 {[%clk 0:00:01.9]} 47... Re7 {[%clk 0:00:37.1]} 48. Rd5 {[%clk
0:00:02.8]} 48... Ke4 {[%clk 0:00:37.1]} 49. Rb5 {[%clk 0:00:02.8]} 49... Rd7
{[%clk 0:00:36.6]} 50. c5 {[%clk 0:00:02.8]} 50... Rd2+ {[%clk 0:00:35.9]} 51.
Kh3 {[%clk 0:00:03.6]} 51... Rh2+ {[%clk 0:00:34.9]} 52. Kg4 {[%clk 0:00:04]}
52... g2 {[%clk 0:00:35.2]} 53. Rb1 {[%clk 0:00:03.1]} 53... g1=Q# {[%clk
0:00:34.8]} 0-1

[Event "Early-Titled-Tuesday-Blitz-April-16-2024"]
[Site "Chess.com"]
[Date "2024.04.16"]
[Round "10"]
[White "Hercog"]
[Black "ccccvhhhj"]
[Result "1-0"]
[WhiteElo "2180"]
[BlackElo "2433"]
[TimeControl "180+1"]
[EndTime "10:00:01 PDT"]
[Termination "Hercog won on time"]

1. d4 {[%clk 0:02:59.8]} 1... e5 {[%clk 0:02:59.9]} 2. dxe5 {[%clk 0:02:59.7]}
2... d6 {[%clk 0:03:00.5]} 3. Nf3 {[%clk 0:02:59.8]} 3... Bg4 {[%clk 0:03:00.5]}
4. Bf4 {[%clk 0:02:58.2]} 4... Nc6 {[%clk 0:03:00.4]} 5. exd6 {[%clk 0:02:58.2]}
5... Qf6 {[%clk 0:03:01.1]} 6. d7+ {[%clk 0:02:44.8]} 6... Bxd7 {[%clk
0:03:00.2]} 7. Bc1 {[%clk 0:02:39.4]} 7... O-O-O {[%clk 0:02:59.8]} 8. e3 {[%clk
0:02:38.7]} 8... Nh6 {[%clk 0:02:48.6]} 9. Nbd2 {[%clk 0:02:31.6]} 9... Bc5
{[%clk 0:02:29.7]} 10. Be2 {[%clk 0:02:29.9]} 10... Ng4 {[%clk 0:02:28.8]} 11.
Ne4 {[%clk 0:02:27.2]} 11... Qf5 {[%clk 0:02:20]} 12. Nxc5 {[%clk 0:02:26]}
12... Qxc5 {[%clk 0:02:20.9]} 13. O-O {[%clk 0:02:20.9]} 13... h5 {[%clk
0:02:16.2]} 14. Bd2 {[%clk 0:02:15.4]} 14... f6 {[%clk 0:02:11.2]} 15. c3 {[%clk
0:02:02.6]} 15... g5 {[%clk 0:02:09.8]} 16. b4 {[%clk 0:02:00.5]} 16... Qe7
{[%clk 0:02:09.5]} 17. Qc2 {[%clk 0:01:58.1]} 17... Nge5 {[%clk 0:02:01.2]} 18.
Rfd1 {[%clk 0:01:46.1]} 18... g4 {[%clk 0:01:58.2]} 19. Nd4 {[%clk 0:01:43.1]}
19... Rdg8 {[%clk 0:01:49.8]} 20. b5 {[%clk 0:01:39.7]} 20... Nd8 {[%clk
0:01:37.5]} 21. e4 {[%clk 0:01:24.1]} 21... h4 {[%clk 0:01:23]} 22. Bf4 {[%clk
0:01:23.4]} 22... g3 {[%clk 0:01:21.8]} 23. fxg3 {[%clk 0:01:08.7]} 23... hxg3
{[%clk 0:01:22.7]} 24. Bxg3 {[%clk 0:01:08]} 24... Qc5 {[%clk 0:01:14.4]} 25.
Rf1 {[%clk 0:00:48.2]} 25... Ne6 {[%clk 0:01:05.9]} 26. Rad1 {[%clk 0:00:47.6]}
26... Nxd4 {[%clk 0:00:46.3]} 27. Rxd4 {[%clk 0:00:47.3]} 27... Bxb5 {[%clk
0:00:46.7]} 28. Bxb5 {[%clk 0:00:43.3]} 28... Qxb5 {[%clk 0:00:47.6]} 29. Rxf6
{[%clk 0:00:42.4]} 29... Rxg3 {[%clk 0:00:35.2]} 30. hxg3 {[%clk 0:00:41]} 30...
Ng4 {[%clk 0:00:35.3]} 31. Rf4 {[%clk 0:00:29.8]} 31... Qh5 {[%clk 0:00:30.8]}
32. Rxg4 {[%clk 0:00:29.8]} 32... Qxg4 {[%clk 0:00:31.1]} 33. Qf2 {[%clk
0:00:28.7]} 33... Qg7 {[%clk 0:00:21.7]} 34. Qf5+ {[%clk 0:00:25.8]} 34... Kb8
{[%clk 0:00:22.1]} 35. g4 {[%clk 0:00:20.7]} 35... a6 {[%clk 0:00:20.3]} 36. g5
{[%clk 0:00:20.2]} 36... Re8 {[%clk 0:00:19.2]} 37. g6 {[%clk 0:00:19]} 37...
Rg8 {[%clk 0:00:14.3]} 38. Rd7 {[%clk 0:00:13.8]} 38... Qxg6 {[%clk 0:00:14.3]}
39. Rd8+ {[%clk 0:00:13.9]} 39... Ka7 {[%clk 0:00:14.9]} 40. Qc5+ {[%clk
0:00:12.7]} 1-0

[Event "Early-Titled-Tuesday-Blitz-April-16-2024"]
[Site "Chess.com"]
[Date "2024.04.16"]
[Round "10"]
[White "SpeedofLight0"]
[Black "David_Arutinian"]
[Result "1-0"]
[WhiteElo "3070"]
[BlackElo "2840"]
[TimeControl "180+1"]
[EndTime "10:00:02 PDT"]
[Termination "SpeedofLight0 won on time"]

1. d4 {[%clk 0:03:00.9]} 1... Nf6 {[%clk 0:02:59.7]} 2. Nc3 {[%clk 0:03:00.8]}
2... d5 {[%clk 0:02:59.4]} 3. Bf4 {[%clk 0:03:01.4]} 3... a6 {[%clk 0:02:55.8]}
4. e3 {[%clk 0:03:01.2]} 4... e6 {[%clk 0:02:54.9]} 5. g4 {[%clk 0:03:01.3]}
5... c5 {[%clk 0:02:52.5]} 6. g5 {[%clk 0:03:01]} 6... Nfd7 {[%clk 0:02:53]} 7.
h4 {[%clk 0:03:01.3]} 7... Nc6 {[%clk 0:02:52.2]} 8. Nf3 {[%clk 0:03:01.5]} 8...
cxd4 {[%clk 0:02:51.9]} 9. exd4 {[%clk 0:03:02.4]} 9... Bb4 {[%clk 0:02:52.2]}
10. Bh3 {[%clk 0:03:01]} 10... Qa5 {[%clk 0:02:48]} 11. Qd3 {[%clk 0:02:59.2]}
11... Nb6 {[%clk 0:02:28.6]} 12. O-O {[%clk 0:02:59.2]} 12... Nc4 {[%clk
0:02:28.8]} 13. Nd1 {[%clk 0:02:59.3]} 13... Bd6 {[%clk 0:02:27.3]} 14. Bxd6
{[%clk 0:02:55.3]} 14... Nxd6 {[%clk 0:02:28.2]} 15. c3 {[%clk 0:02:52.5]} 15...
O-O {[%clk 0:02:26]} 16. Ne5 {[%clk 0:02:16.2]} 16... Nxe5 {[%clk 0:02:13.4]}
17. dxe5 {[%clk 0:02:17.1]} 17... Nc4 {[%clk 0:02:13.8]} 18. Re1 {[%clk
0:02:17.1]} 18... Bd7 {[%clk 0:02:06]} 19. b3 {[%clk 0:02:11.7]} 19... Na3
{[%clk 0:02:04.4]} 20. Ne3 {[%clk 0:02:11.1]} 20... Rac8 {[%clk 0:02:02.3]} 21.
Rac1 {[%clk 0:02:10.6]} 21... Rfd8 {[%clk 0:01:56.6]} 22. Ng4 {[%clk 0:02:09]}
22... Nb5 {[%clk 0:01:44.1]} 23. c4 {[%clk 0:02:00.5]} 23... dxc4 {[%clk
0:01:41.1]} 24. bxc4 {[%clk 0:02:01.4]} 24... Be8 {[%clk 0:01:34]} 25. Qg3
{[%clk 0:01:58.1]} 25... Nd4 {[%clk 0:01:33.6]} 26. Nf6+ {[%clk 0:01:52.6]}
26... Kh8 {[%clk 0:01:33.2]} 27. h5 {[%clk 0:01:43]} 27... Bc6 {[%clk
0:01:26.7]} 28. Ne4 {[%clk 0:01:07.8]} 28... Qxe5 {[%clk 0:01:15.7]} 29. Bg2
{[%clk 0:00:59.9]} 29... Qxg3 {[%clk 0:01:02.7]} 30. fxg3 {[%clk 0:01:00.8]}
30... h6 {[%clk 0:00:58.5]} 31. g6 {[%clk 0:00:58.2]} 31... fxg6 {[%clk
0:00:53.8]} 32. hxg6 {[%clk 0:00:59.1]} 32... Be8 {[%clk 0:00:54.2]} 33. c5
{[%clk 0:00:58]} 33... Bxg6 {[%clk 0:00:44.1]} 34. Nd6 {[%clk 0:00:58.1]} 34...
Rxd6 {[%clk 0:00:27.6]} 35. cxd6 {[%clk 0:00:59]} 35... Ne2+ {[%clk 0:00:28.2]}
36. Rxe2 {[%clk 0:00:58.3]} 36... Rxc1+ {[%clk 0:00:27.8]} 37. Kf2 {[%clk
0:00:56.9]} 37... Rd1 {[%clk 0:00:21.5]} 38. Rxe6 {[%clk 0:00:56.9]} 38... Bf7
{[%clk 0:00:20.5]} 39. Re7 {[%clk 0:00:57]} 39... Kg8 {[%clk 0:00:21]} 40. Rd7
{[%clk 0:00:54.1]} 40... g5 {[%clk 0:00:18]} 41. Bxb7 {[%clk 0:00:52.9]} 41...
a5 {[%clk 0:00:18]} 42. Ke3 {[%clk 0:00:45.6]} 42... Kf8 {[%clk 0:00:16.9]} 43.
Bf3 {[%clk 0:00:45]} 43... Re1+ {[%clk 0:00:15.3]} 44. Kd4 {[%clk 0:00:40.4]}
44... Bxa2 {[%clk 0:00:12]} 45. Ra7 {[%clk 0:00:37.3]} 45... Bf7 {[%clk
0:00:06.4]} 46. Bc6 {[%clk 0:00:37.3]} 46... Rd1+ {[%clk 0:00:06.2]} 47. Ke5
{[%clk 0:00:37.8]} 47... Re1+ {[%clk 0:00:06.5]} 48. Kd4 {[%clk 0:00:35.6]}
48... Rd1+ {[%clk 0:00:07.1]} 49. Kc5 {[%clk 0:00:36.2]} 49... a4 {[%clk
0:00:06]} 50. Ra8+ {[%clk 0:00:35]} 50... Kg7 {[%clk 0:00:06.5]} 51. d7 {[%clk
0:00:35.6]} 51... a3 {[%clk 0:00:05.4]} 52. d8=Q {[%clk 0:00:30.5]} 52... Rxd8
{[%clk 0:00:05.7]} 53. Rxd8 {[%clk 0:00:31.4]} 53... a2 {[%clk 0:00:06.5]} 54.
Ra8 {[%clk 0:00:32]} 54... h5 {[%clk 0:00:06.1]} 55. Bd5 {[%clk 0:00:32.4]} 1-0